[Event "HUN-chT Youth 2019"]
[Site "Budapest"]
[Date "2019.10.29"]
[Round "6.4"]
[White "Daroczi, Donat"]
[Black "Kovacs, Gabor Etele"]
[Result "1-0"]
[ECO "B03"]
[WhiteElo "1976"]
[BlackElo "2053"]
[Annotator "NA RC"]
[PlyCount "79"]
[EventDate "2019.10.26"]
[EventType "team-tourn"]
[EventCountry "HUN"]
[SourceTitle "playchess.com"]
[Source "ChessBase"]
[SourceQuality "1"]
[TimeControl "5400+30"]

{[%evp 34,79,79,73,69,55,110,-7,8,0,113,9,46,-37,-18,-118,-27,-8,-13,-358,0,-288,-208,-206,0,0,0,-508,-548,-551,-546,-579,-589,-602,-550,-564,-585,-878,-44,-37,-25,-25,50,55,29996,29997,29997,29998]} 1. e4 {[%emt 0:00:00]} Nf6 {[%emt 0:00:00]} 2. e5 {[%emt 0:00:00]} Nd5 {[%emt 0:00:00]} 3. d4 {[%emt 0:00:00]} d6 {[%emt 0:00:21]} 4. c4 {[%emt 0:00:00]} Nb6 {[%emt 0:00:05]} 5. exd6 {[%emt 0:00:00]} cxd6 {[%emt 0:00:26]} 6. Nc3 {[%emt 0:00:00]} g6 {[%emt 0:00:16]} 7. Be3 {[%emt 0:00:02]} Bg7 {[%emt 0:00:17]} 8. Rc1 {[%emt 0:00:07]} O-O {[%emt 0:00:55]} 9. b3 {[%emt 0:00:01]} Bf5 {[%emt 0:00:18]} 10. Bd3 {[%emt 0:00:05] B03: Alekhine's Defence: Four Pawns Attack} (10. Be2 d5 11. c5 Nc8 12. Bf3 e6 13. g4 Be4 14. Nxe4 dxe4 15. Bxe4 Nc6 16. Ne2 N8e7 17. O-O Qd7 {1-0 (34) Corrales Jimenez,F (2559)-Zhao,J (2610) chess.com INT 2019}) 10... Bxd3 {[%emt 0:06:26]} 11. Qxd3 {[%emt 0:00:01]} e5 {[%emt 0:02:34]} 12. Nge2 {[%emt 0:13:00]} Nc6 {[%emt 0:08:02]} 13. O-O {[%emt 0:07:01]} f5 $146 {[%emt 0:09:57]} ({Predecessor:} 13... Qe7 14. d5 Nb4 15. Qb1 f5 16. f3 a5 17. Bxb6 {1-0 (17) Sherwood,R (1655)-Bossi,N (1418) LSS email 2010}) 14. dxe5 {[%emt 0:14:02]} dxe5 {[%emt 0:00:44]} 15. Qb1 {[%emt 0:08:07]} Nd4 {[%emt 0:13:53]} 16. Bxd4 {[%emt 0:09:31]} exd4 {[%emt 0:00:07]} 17. Rfd1 {[%emt 0:00:22]} Qh4 {[%emt 0:18:11] [#]} 18. Nb5 $1 {[%emt 0:03:16]} Rad8 {[%emt 0:04:32]} 19. c5 {[%emt 0:07:56]} Nc8 {[%emt 0:22:39]} (19... a6 $14) 20. Rc4 {[%emt 0:02:24]} ({White should play} 20. Qc2 $16) 20... Rd7 {[%emt 0:02:24]} 21. g3 {[%emt 0:13:54]} ({Much weaker is} 21. Nexd4 Rfd8 $15) 21... Qe7 {[%emt 0:01:19]} (21... Qe4 $11 22. Qxe4 (22. Nexd4 Qxb1 23. Rxb1 a6 $15) (22. Nbxd4 Rfd8 $15) 22... fxe4) 22. Qd3 {[%emt 0:01:47]} ({Of course not} 22. Nexd4 a6 $11) (22. Nbxd4 $16 Re8 23. Qc2) 22... Rfd8 {[%emt 0:00:36]} 23. b4 {[%emt 0:02:39]} ({Of course not} 23. Nbxd4 b5 $15) ({White should try} 23. c6 $14 bxc6 24. Rxc6) 23... a6 {[%emt 0:00:32]} 24. Nbxd4 {[%emt 0:06:39]} (24. Na3 $11) 24... Na7 {[%emt 0:00:09]} 25. Qe3 {[%emt 0:03:10]} Nc6 {[%emt 0:01:50]} 26. Kf1 $2 {[%emt 0:01:40]} (26. Re1 $1 $11) 26... Qf6 $2 {[%emt 0:02:37]} (26... Qf7 $19 27. Qc3 Rxd4 28. Rdxd4 Nxd4 29. Rxd4 Bxd4 30. Nxd4 Qxa2) 27. Kg2 $2 {[%emt 0:00:56]} ({Wrong is} 27. Qb3 $2 Qf7 $19) (27. Rd2 $1 $11) 27... Nxd4 {[%emt 0:01:03]} 28. Nxd4 {[%emt 0:00:38]} Rxd4 $2 {[%emt 0:00:25]} (28... f4 $19 29. Qb3 Qf7) 29. Rcxd4 {[%emt 0:00:28]} Rxd4 {[%emt 0:00:02]} 30. Re1 $2 {[%emt 0:03:13]} (30. Rxd4 $11 Qxd4 31. Qe6+ Kf8 32. Qc8+ {[%mdl 64] Double Attack} Kf7 33. Qxb7+ Kg8 34. Qxa6) 30... Qc6+ {[%emt 0:00:50]} 31. Kg1 {[%emt 0:00:01]} Rxb4 32. Rd1 {[#]} Bd4 $1 {[%emt 0:01:53] Back Rank} 33. Qe7 {[%emt 0:01:35]} Qxc5 {[%emt 0:00:48]} 34. Qd8+ {[%emt 0:00:17]} Kg7 {[%emt 0:00:27]} 35. Rd2 {[%emt 0:00:48] [#]} Rb1+ $2 {[%emt 0:01:49]} (35... Bxf2+ $1 $19 36. Kg2 (36. Rxf2 Rb2) 36... Rd4 37. Rxd4 Bxd4) 36. Kg2 {[%emt 0:00:01]} Qc6+ {[%emt 0:00:33]} 37. Kh3 $1 {[%emt 0:00:03]} Bf6 {[%emt 0:00:50]} (37... Re1 $15) 38. Rd7+ {[%emt 0:00:01] [#]} Kh6 $2 {[%emt 0:00:13]} (38... Qxd7 $1 $14 39. Qxd7+ Kg8) 39. Qf8+ {[%emt 0:00:10]} Bg7 {[%emt 0:00:45]} 40. Qxg7+ {[%emt 0:00:09] Double Attack} 1-0

[Event "HUN-chT Youth 2019"]
[Site "Budapest"]
[Date "2019.10.29"]
[Round "6.4"]
[White "Kerekes, Laszlo Fulop"]
[Black "Szuhorukov, Viktor"]
[Result "1-0"]
[ECO "C00"]
[WhiteElo "1369"]
[BlackElo "1213"]
[Annotator "NA RC"]
[PlyCount "59"]
[EventDate "2019.10.26"]
[EventType "team-tourn"]
[EventCountry "HUN"]
[SourceTitle "playchess.com"]
[Source "ChessBase"]
[SourceQuality "1"]
[TimeControl "5400+30"]

1. e4 {[%emt 0:00:00]} e6 {[%emt 0:00:53]} 2. d3 {[%emt 0:00:07]} d5 {[%emt 0:00:09]} 3. Nd2 {[%emt 0:00:56]} c5 {[%emt 0:01:12]} 4. Ngf3 {[%emt 0:02:41]} Nc6 {[%emt 0:00:25]} 5. g3 {[%emt 0:01:32]} Nf6 {[%emt 0:01:19]} 6. Bg2 {[%emt 0:01:25]} Be7 {[%emt 0:01:22]} 7. O-O {[%emt 0:00:55]} O-O {[%emt 0:01:37]} 8. e5 {[%emt 0:01:40]} Nd7 {[%emt 0:00:20]} 9. Re1 {[%emt 0:00:42]} Qc7 {[%emt 0:00:50]} 10. Qe2 {[%emt 0:00:44]} Rd8 {[%emt 0:05:47]} 11. Nf1 {[%emt 0:05:34]} b6 {[%emt 0:02:58]} 12. h4 {[%emt 0:02:23]} h6 {[%emt 0:03:21]} 13. N1h2 {[%emt 0:02:17]} d4 {[%emt 0:00:44]} 14. h5 {[%emt 0:02:51]} Bb7 {[%emt 0:01:40]} 15. Ng4 {[%emt 0:01:51]} a5 {[%emt 0:06:56]} 16. Nh4 {[%emt 0:21:16]} Bxh4 {[%emt 0:03:03]} 17. gxh4 {[%emt 0:01:18]} Rab8 {[%emt 0:03:29]} 18. Nxh6+ {[%emt 0:06:51]} gxh6 {[%emt 0:09:18]} 19. Qg4+ {[%emt 0:01:43]} Kh8 {[%emt 0:08:29]} 20. Qf4 {[%emt 0:05:10]} Ncxe5 {[%emt 0:07:23]} 21. Qxh6+ {[%emt 0:04:31]} Kg8 {[%emt 0:00:38]} 22. Qg5+ {[%emt 0:02:12]} Kf8 {[%emt 0:01:24]} 23. h6 {[%emt 0:02:09]} Ng6 {[%emt 0:04:25]} 24. h5 {[%emt 0:02:17]} Nh8 {[%emt 0:00:35]} 25. Qg7+ {[%emt 0:01:04]} Ke7 {[%emt 0:02:56]} 26. Bg5+ {[%emt 0:00:50]} Kd6 {[%emt 0:00:25]} 27. Bf4+ {[%emt 0:05:56]} e5 {[%emt 0:01:19]} 28. Bxe5+ {[%emt 0:01:16]} Nxe5 {[%emt 0:00:11]} 29. Qf6+ {[%emt 0:01:47]} Kd7 {[%emt 0:01:14]} 30. Bh3+ {[%emt 0:00:34]} 1-0

[Event "HUN-chT Youth 2019"]
[Site "Budapest"]
[Date "2019.10.29"]
[Round "6.5"]
[White "Giang, Tran Nam"]
[Black "Kiss, Rebeka"]
[Result "1/2-1/2"]
[ECO "C88"]
[WhiteElo "2028"]
[BlackElo "1743"]
[Annotator "NA RC"]
[PlyCount "94"]
[EventDate "2019.10.26"]
[EventType "team-tourn"]
[EventCountry "HUN"]
[SourceTitle "playchess.com"]
[Source "ChessBase"]
[SourceQuality "1"]
[TimeControl "5400+30"]

{[%evp 49,89,0,79,-25,-22,-85,-14,-16,-4,32767,-14,-6,20,0,25,20,26,0,0,-5,0,0,16,10,54,47,48,30,15,32,210,209,203,253,208,281,235,5,0,-31,-21,-23]} 1. e4 {[%emt 0:00:00]} e5 {[%emt 0:00:00]} 2. Nf3 {[%emt 0:00:00]} Nc6 {[%emt 0:00:00]} 3. Bb5 {[%emt 0:00:00]} a6 {[%emt 0:00:20]} 4. Ba4 {[%emt 0:00:00]} Nf6 {[%emt 0:01:30]} 5. O-O {[%emt 0:00:00]} Be7 {[%emt 0:00:34]} 6. Re1 {[%emt 0:00:07]} b5 {[%emt 0:00:30]} 7. Bb3 {[%emt 0:00:04]} O-O {[%emt 0:00:14]} 8. d4 {[%emt 0:00:23]} d6 {[%emt 0:01:43]} 9. c3 {[%emt 0:00:16]} Na5 {[%emt 0:01:38]} 10. Bc2 {[%emt 0:00:42] C91: Closed Ruy Lopez: 7...d6 8 c3 0-0 9 d4} Bg4 {[%emt 0:08:44]} (10... c5 11. Nbd2 Qc7 12. h3 cxd4 13. cxd4 Nc6 14. Nb3 a5 15. Be3 a4 16. Nbd2 Bd7 17. Nf1 Rac8 18. Rc1 Qb8 19. Ng3 Rc7 20. Qd2 Rfc8 21. Bb1 Bd8 22. dxe5 Nxe5 23. Nxe5 Rxc1 24. Rxc1 Rxc1+ 25. Qxc1 dxe5 {1-0 (79) Kosintseva,T (2539)-Zhao,X (2544) Sochi 2009}) 11. dxe5 {[%emt 0:02:43]} Bxf3 {[%emt 0:02:09]} 12. Qxf3 {[%emt 0:00:17]} dxe5 {[%emt 0:00:09]} 13. Nd2 {[%emt 0:02:59]} Qd7 {[%emt 0:12:44]} 14. Nf1 $146 {[%emt 0:03:05]} ({Predecessor:} 14. h3 c6 15. Nf1 Nc4 16. Rd1 Qc7 17. Ng3 {½-½ (46) Floricelovic,M (2067)-Lukic,L (1757) Paracin 2014}) 14... Qg4 {[%emt 0:01:41]} 15. Qxg4 {[%emt 0:01:24]} Nxg4 {[%emt 0:00:06]} 16. h3 {[%emt 0:00:24]} Nf6 {[%emt 0:00:13]} 17. Bg5 {[%emt 0:01:57]} Rfe8 {[%emt 0:05:08]} 18. Ne3 {[%emt 0:03:56]} g6 {[%emt 0:01:51]} 19. Rad1 {[%emt 0:05:32]} c6 {[%emt 0:04:08]} 20. b4 {[%emt 0:03:54]} Nb7 {[%emt 0:05:45]} 21. Bxf6 {[%emt 0:01:10]} Bxf6 {[%emt 0:00:07]} 22. Rd7 {[%emt 0:00:13]} Nd8 {[%emt 0:03:06]} 23. Red1 {[%emt 0:02:02]} h5 {[%emt 0:01:49]} 24. Kf1 {[%emt 0:05:30]} Kf8 {[%emt 0:13:55]} 25. Ke2 Kg7 {[%emt 0:02:55]} (25... a5 $11) 26. Nf1 {[%emt 0:08:24]} ({White should try} 26. Bb3 $16) 26... a5 {[%emt 0:05:02]} 27. Bb3 {[%emt 0:04:25]} (27. bxa5 $11 Rxa5 28. Bb3) 27... a4 {[%emt 0:00:52]} 28. Bc2 {[%emt 0:00:18]} Rc8 {[%emt 0:00:27]} 29. Ne3 {[%emt 0:01:44]} Ne6 {[%emt 0:00:49]} 30. g3 {[%emt 0:05:13]} Be7 {[%emt 0:03:44]} 31. Rb7 {[%emt 0:05:44]} Rc7 {[%emt 0:02:10]} 32. Rxc7 {[%emt 0:01:06]} Nxc7 {[%emt 0:00:01]} 33. f4 {[%emt 0:00:51]} (33. Rd7 $5 {[%cal Rd7c7]} Ne6 34. Bd3 $11) 33... exf4 {[%emt 0:05:14]} 34. gxf4 {[%emt 0:00:35]} Ne6 {[%emt 0:00:22]} 35. Kf3 {[%emt 0:00:47]} Rd8 {[%emt 0:05:49]} 36. Rxd8 {[%emt 0:02:01]} Nxd8 {[%emt 0:00:48]} 37. e5 {[%emt 0:02:15]} Kf8 {[%emt 0:02:33]} 38. Be4 {[%emt 0:08:13]} Ke8 {[%emt 0:02:59]} 39. f5 {[%emt 0:03:44]} g5 $2 {[%emt 0:00:19]} (39... gxf5 $14 40. Nxf5 Bg5) 40. f6 {[%emt 0:02:07]} Bf8 {[%emt 0:00:06] [#]} 41. Nf5 $1 {[%emt 0:00:11]} Kd7 {[%emt 0:01:06] [#]} 42. Ng7 $1 {[%emt 0:01:38]} a3 {[%emt 0:00:34]} 43. Nxh5 $2 {[%emt 0:01:45]} ({White should try} 43. Bf5+ $18 Kc7 44. Nxh5) 43... Ke6 {[%emt 0:00:29]} 44. Ke3 {[%emt 0:04:53]} Kxe5 {[%emt 0:00:38]} 45. Bf3 $11 {[%emt 0:01:51]} c5 {[%emt 0:01:08]} 46. bxc5 {[%emt 0:01:01]} Bxc5+ {[%emt 0:00:01]} 47. Kd3 {[%emt 0:00:41]} Bf8 {[%emt 0:00:45] Ke4+} 1/2-1/2

[Event "HUN-chT Youth 2019"]
[Site "Budapest"]
[Date "2019.10.29"]
[Round "6.6"]
[White "Farkas, Virag"]
[Black "Toth, Kincso"]
[Result "0-1"]
[ECO "D00"]
[WhiteElo "1506"]
[BlackElo "1556"]
[Annotator "NA RC"]
[PlyCount "54"]
[EventDate "2019.10.26"]
[EventType "team-tourn"]
[EventCountry "HUN"]
[SourceTitle "playchess.com"]
[Source "ChessBase"]
[SourceQuality "1"]
[TimeControl "5400+30"]

1. d4 {[%emt 0:00:00]} d5 {[%emt 0:00:00]} 2. Bf4 {[%emt 0:00:00]} Nf6 {[%emt 0:00:31]} 3. e3 {[%emt 0:00:37]} c5 {[%emt 0:01:11]} 4. c3 {[%emt 0:02:50]} Nc6 {[%emt 0:01:38]} 5. Bd3 {[%emt 0:00:49]} Qb6 {[%emt 0:01:01]} 6. Qc1 {[%emt 0:08:36]} cxd4 {[%emt 0:02:23]} 7. exd4 {[%emt 0:00:16]} Nh5 {[%emt 0:02:20]} 8. Be3 {[%emt 0:03:54]} Bd7 {[%emt 0:01:36]} 9. Nd2 {[%emt 0:04:15]} Rc8 {[%emt 0:01:24]} 10. Ngf3 {[%emt 0:06:02]} e6 {[%emt 0:03:37]} 11. Rb1 {[%emt 0:11:25]} Bd6 {[%emt 0:03:58]} 12. Nb3 {[%emt 0:09:50]} Nb4 {[%emt 0:08:22]} 13. Bc2 {[%emt 0:09:15]} Nxa2 {[%emt 0:09:21]} 14. Qd1 {[%emt 0:06:21]} Qc7 {[%emt 0:07:34]} 15. Bd2 {[%emt 0:16:14]} Nb4 {[%emt 0:01:34]} 16. cxb4 {[%emt 0:03:40]} Qxc2 {[%emt 0:00:17]} 17. Qxc2 {[%emt 0:00:12]} Rxc2 {[%emt 0:00:06]} 18. Bc3 {[%emt 0:00:49]} Nf4 {[%emt 0:01:09]} 19. Rd1 {[%emt 0:02:30]} Nxg2+ {[%emt 0:02:11]} 20. Kf1 {[%emt 0:00:20]} Nf4 {[%emt 0:00:25]} 21. Nfd2 {[%emt 0:01:21]} Bb5+ {[%emt 0:00:20]} 22. Kg1 {[%emt 0:02:23]} Ne2+ {[%emt 0:00:25]} 23. Kg2 {[%emt 0:00:35]} Nxc3 {[%emt 0:00:07]} 24. bxc3 {[%emt 0:00:20]} Rxc3 {[%emt 0:00:12]} 25. Nc5 {[%emt 0:03:23]} Bxc5 {[%emt 0:00:20]} 26. bxc5 {[%emt 0:00:17]} Ke7 {[%emt 0:01:30]} 27. Nf3 {[%emt 0:00:59]} Be2 {[%emt 0:00:28]} 0-1

[Event "HUN-chT Youth 2019"]
[Site "Budapest"]
[Date "2019.10.29"]
[Round "6.7"]
[White "Szabo, Marton Nandor"]
[Black "Markus, Molli Amina"]
[Result "1/2-1/2"]
[ECO "A49"]
[WhiteElo "1803"]
[BlackElo "1614"]
[Annotator "NA RC"]
[PlyCount "47"]
[EventDate "2019.10.26"]
[EventType "team-tourn"]
[EventCountry "HUN"]
[SourceTitle "playchess.com"]
[Source "ChessBase"]
[SourceQuality "1"]
[TimeControl "5400+30"]

1. d4 {[%emt 0:00:23]} Nf6 {[%emt 0:00:00]} 2. Nf3 {[%emt 0:00:34]} g6 {[%emt 0:00:41]} 3. g3 {[%emt 0:00:29]} Bg7 {[%emt 0:00:37]} 4. Bg2 {[%emt 0:00:08]} O-O {[%emt 0:00:50]} 5. O-O {[%emt 0:00:07]} d6 {[%emt 0:01:03]} 6. c4 {[%emt 0:00:38]} Nbd7 {[%emt 0:01:24]} 7. Qd3 {[%emt 0:03:19]} e5 {[%emt 0:02:31]} 8. Nc3 {[%emt 0:03:58]} exd4 {[%emt 0:03:00]} 9. Nxd4 {[%emt 0:00:28]} Ne5 {[%emt 0:01:09]} 10. Qc2 {[%emt 0:01:20]} a6 {[%emt 0:10:07]} 11. b3 {[%emt 0:03:45]} Rb8 {[%emt 0:03:30]} 12. Bb2 {[%emt 0:05:40]} Bd7 {[%emt 0:01:33]} 13. a4 {[%emt 0:10:00]} Nc6 {[%emt 0:03:40]} 14. Nxc6 {[%emt 0:02:37]} Bxc6 {[%emt 0:00:14]} 15. e4 {[%emt 0:00:13]} Re8 {[%emt 0:02:56]} 16. Rfe1 {[%emt 0:01:52]} Qc8 {[%emt 0:06:43]} 17. Rac1 {[%emt 0:04:52]} Bd7 {[%emt 0:10:06]} 18. Nd5 {[%emt 0:02:01]} Nxd5 {[%emt 0:01:01]} 19. Bxg7 {[%emt 0:01:14]} Kxg7 {[%emt 0:03:32]} 20. cxd5 {[%emt 0:00:19]} c6 {[%emt 0:01:39]} 21. Qc3+ {[%emt 0:01:18]} f6 {[%emt 0:02:15]} 22. Qb4 {[%emt 0:08:28]} Qc7 {[%emt 0:03:13]} 23. dxc6 {[%emt 0:01:00]} bxc6 {[%emt 0:01:41]} 24. Qc4 {[%emt 0:01:52]} 1/2-1/2

[Event "HUN-chT Youth 2019"]
[Site "Budapest"]
[Date "2019.10.28"]
[Round "6.9"]
[White "Csernyik, Mark"]
[Black "Puskas, Mihaly"]
[Result "*"]
[ECO "C50"]
[WhiteElo "1749"]
[BlackElo "1480"]
[Annotator "NA RC"]
[PlyCount "21"]
[EventDate "2019.10.26"]
[EventType "team-tourn"]
[EventCountry "HUN"]
[SourceTitle "playchess.com"]
[Source "ChessBase"]
[SourceQuality "1"]
[TimeControl "5400+30"]

1. e4 {[%emt 0:00:00]} e5 {[%emt 0:00:04]} 2. Nf3 {[%emt 0:00:00]} Nc6 {[%emt 0:00:14]} 3. Bc4 {[%emt 0:00:00]} Bc5 {[%emt 0:00:12]} 4. O-O {[%emt 0:00:44]} d6 {[%emt 0:00:10]} 5. c3 {[%emt 0:05:36]} Bg4 {[%emt 0:01:15]} 6. d3 {[%emt 0:01:14]} Qd7 {[%emt 0:04:16]} 7. Be3 {[%emt 0:01:23]} Bb6 {[%emt 0:00:40]} 8. Nbd2 {[%emt 0:01:57]} O-O-O {[%emt 0:01:55]} 9. b4 {[%emt 0:00:53]} f5 {[%emt 0:03:22]} 10. h3 {[%emt 0:01:00]} Bh5 {[%emt 0:00:25]} 11. Qb3 {[%emt 0:00:15]} *

[Event "HUN-chT Youth 2019"]
[Site "Budapest"]
[Date "2019.10.29"]
[Round "6.10"]
[White "Kiss, Eniko"]
[Black "Toth, Nikoletta"]
[Result "1/2-1/2"]
[ECO "A11"]
[WhiteElo "1703"]
[BlackElo "1965"]
[Annotator "NA RC"]
[PlyCount "53"]
[EventDate "2019.10.26"]
[EventType "team-tourn"]
[EventCountry "HUN"]
[SourceTitle "playchess.com"]
[Source "ChessBase"]
[SourceQuality "1"]
[TimeControl "5400+30"]

1. c4 {[%emt 0:00:00]} c6 {[%emt 0:00:00]} 2. e4 {[%emt 0:01:03]} e5 {[%emt 0:10:42]} 3. d4 {[%emt 0:03:44]} Bb4+ {[%emt 0:11:01]} 4. Bd2 {[%emt 0:04:41]} Qe7 {[%emt 0:07:50]} 5. d5 {[%emt 0:02:28]} cxd5 {[%emt 0:01:26]} 6. cxd5 {[%emt 0:01:03]} Nf6 {[%emt 0:01:27]} 7. a3 {[%emt 0:00:44]} Bxd2+ {[%emt 0:01:09]} 8. Nxd2 {[%emt 0:00:02]} O-O {[%emt 0:00:16]} 9. Ngf3 {[%emt 0:01:59]} d6 {[%emt 0:00:41]} 10. Bd3 {[%emt 0:01:17]} Bg4 {[%emt 0:04:10]} 11. O-O {[%emt 0:01:36]} Nbd7 {[%emt 0:01:34]} 12. b4 {[%emt 0:00:59]} Nh5 {[%emt 0:07:43]} 13. h3 {[%emt 0:11:06]} Bxf3 {[%emt 0:04:40]} 14. Qxf3 {[%emt 0:02:12]} Nf4 {[%emt 0:00:47]} 15. Rac1 {[%emt 0:06:21]} Nb6 {[%emt 0:08:51]} 16. Rc3 {[%emt 0:03:43]} Rac8 {[%emt 0:05:45]} 17. Rfc1 {[%emt 0:00:50]} Rxc3 {[%emt 0:00:53]} 18. Rxc3 {[%emt 0:00:08]} Rc8 {[%emt 0:10:58]} 19. Bf1 {[%emt 0:02:31]} Qd7 {[%emt 0:00:45]} 20. Qe3 {[%emt 0:06:03]} h6 {[%emt 0:01:55]} 21. Nb3 {[%emt 0:14:48]} Ng6 {[%emt 0:09:43]} 22. Qc1 {[%emt 0:07:13]} Ne7 {[%emt 0:00:32]} 23. Rxc8+ {[%emt 0:09:56]} Nexc8 {[%emt 0:01:48]} 24. g3 {[%emt 0:00:41]} Ne7 {[%emt 0:02:34]} 25. Kh2 {[%emt 0:01:58]} Kh8 {[%emt 0:00:38]} 26. Be2 {[%emt 0:01:54]} f5 $11 {[%emt 0:00:28]} 27. f3 1/2-1/2

[Event "HUN-chT Youth 2019"]
[Site "Budapest"]
[Date "2019.10.29"]
[Round "6.11"]
[White "Bernath, Bence"]
[Black "Ivan, Reka Gyongyver"]
[Result "1-0"]
[ECO "B12"]
[WhiteElo "2004"]
[BlackElo "1686"]
[Annotator "NA RC"]
[PlyCount "63"]
[EventDate "2019.10.26"]
[EventType "team-tourn"]
[EventCountry "HUN"]
[SourceTitle "playchess.com"]
[Source "ChessBase"]
[SourceQuality "1"]
[TimeControl "5400+30"]

1. e4 {[%emt 0:00:00]} c6 {[%emt 0:00:00]} 2. d4 {[%emt 0:00:25]} d5 {[%emt 0:00:00]} 3. e5 {[%emt 0:00:28]} Bf5 {[%emt 0:00:11]} 4. h4 {[%emt 0:00:27]} h5 {[%emt 0:00:18]} 5. Bd3 {[%emt 0:00:44]} Bxd3 {[%emt 0:00:24]} 6. Qxd3 {[%emt 0:00:15]} e6 {[%emt 0:00:22]} 7. Bg5 {[%emt 0:00:30] B12: Caro-Kann: Advance Variation} Be7 {[%emt 0:02:16]} 8. Nf3 {[%emt 0:01:14]} Nd7 {[%emt 0:01:47]} (8... Nh6 9. Nbd2 Nf5 10. Nf1 Qa5+ 11. c3 Qa6 12. Qd2 Nd7 13. Ng3 Nxg3 14. fxg3 f6 {½-½ (72) Inarkiev,E (2693)-Tomashevsky,E (2705) St Petersburg 2018}) 9. Nbd2 {[%emt 0:01:17]} Qb6 {[%emt 0:03:22]} 10. c4 {[%emt 0:05:56]} Qa6 {[%emt 0:18:44]} 11. Qb3 $146 {[%emt 0:12:56]} ({Predecessor:} 11. b3 Nh6 12. Bxe7 Kxe7 13. Qc3 Qb6 14. O-O Nf5 {1-0 (34) Antal,G (2522)-Bopp,T (2154) Caleta 2018}) 11... Rc8 {[%emt 0:04:41]} 12. Rc1 {[%emt 0:02:21]} Nb6 {[%emt 0:02:12]} 13. O-O {[%emt 0:02:26]} Bd8 {[%emt 0:05:25]} 14. cxd5 {[%emt 0:01:37]} Nxd5 {[%emt 0:01:15]} 15. Bxd8 {[%emt 0:00:55]} Rxd8 {[%emt 0:01:29]} 16. Ne4 {[%emt 0:00:28]} Nf4 {[%emt 0:03:06]} 17. Kh2 {[%emt 0:04:20]} Nh6 {[%emt 0:17:53]} 18. Nd6+ Rxd6 19. exd6 {[%emt 0:00:40]} Ng4+ {[%emt 0:00:41]} 20. Kh1 {[%emt 0:00:45]} Nd3 {[%emt 0:01:18]} 21. Rc2 {[%emt 0:01:37]} Nb4 {[%emt 0:14:51] [#]} ({Black should try} 21... Nc5 $1 $14 22. Qc4 Qxc4 23. Rxc4 Ne4) 22. Rc4 $1 {[%emt 0:00:19]} Nd5 {[%emt 0:02:14]} 23. Ne5 {[%emt 0:02:10]} Ngf6 {[%emt 0:01:18]} (23... Nb6 {is a better defense.}) 24. Kg1 {[%emt 0:01:34]} Nf4 $2 {[%emt 0:01:42]} (24... Nb6 25. Rc2 Qa4 26. Qxa4 Nxa4) 25. g3 {[%emt 0:02:44]} N4d5 {[%emt 0:03:04] [#]} 26. Rxc6 $1 {[%emt 0:00:51]} b6 {[%emt 0:03:19] [#]} 27. Rfc1 {[%emt 0:01:15]} (27. Qb5 $142 $1 {[%mdl 512]} O-O (27... Qxb5 28. Rc8#) 28. Qxa6) 27... O-O {[%emt 0:00:39]} 28. Qc4 {[%emt 0:01:44]} Qb7 {[%emt 0:01:08]} 29. Rc8 {[%emt 0:00:24]} Rxc8 {[%emt 0:09:42]} 30. Qxc8+ {[%emt 0:00:07]} Qxc8 {[%emt 0:00:05]} 31. Rxc8+ $18 {[%emt 0:00:07]} Kh7 {[%emt 0:00:07]} 32. d7 {[%emt 0:00:03]} 1-0

[Event "HUN-chT Youth 2019"]
[Site "Budapest"]
[Date "2019.10.29"]
[Round "6.12"]
[White "Kiraly, Lilla Virag"]
[Black "Buri, Kata"]
[Result "0-1"]
[ECO "B25"]
[WhiteElo "1450"]
[BlackElo "1646"]
[Annotator "NA RC"]
[PlyCount "94"]
[EventDate "2019.10.26"]
[EventType "team-tourn"]
[EventCountry "HUN"]
[SourceTitle "playchess.com"]
[Source "ChessBase"]
[SourceQuality "1"]
[TimeControl "5400+30"]

1. e4 {[%emt 0:00:00]} c5 {[%emt 0:00:00]} 2. Nc3 {[%emt 0:00:00]} Nc6 {[%emt 0:00:27]} 3. g3 {[%emt 0:00:04]} g6 {[%emt 0:00:27]} 4. Bg2 {[%emt 0:00:20]} Bg7 {[%emt 0:00:09]} 5. d3 {[%emt 0:00:15]} d6 {[%emt 0:01:05]} 6. f4 {[%emt 0:00:22]} Nf6 {[%emt 0:00:45]} 7. Be3 {[%emt 0:00:42]} O-O {[%emt 0:01:35]} 8. h3 {[%emt 0:02:02]} Rb8 {[%emt 0:02:25]} 9. Nf3 {[%emt 0:01:34]} Nd7 {[%emt 0:02:05]} 10. O-O {[%emt 0:02:09]} b5 {[%emt 0:02:20]} 11. Qd2 {[%emt 0:01:56]} Nd4 {[%emt 0:02:27]} 12. Rae1 {[%emt 0:01:57]} a5 {[%emt 0:04:32]} 13. Nd1 {[%emt 0:07:41]} Nxf3+ {[%emt 0:03:20]} 14. Bxf3 {[%emt 0:01:41]} Ba6 {[%emt 0:00:55]} 15. f5 {[%emt 0:10:54]} Qc7 {[%emt 0:05:13]} 16. Bh6 {[%emt 0:03:08]} d5 {[%emt 0:03:57]} 17. Kg2 {[%emt 0:03:34]} d4 {[%emt 0:05:58]} 18. Nf2 {[%emt 0:07:31]} Ne5 {[%emt 0:02:18]} 19. Ng4 {[%emt 0:15:12]} Nxg4 {[%emt 0:02:55]} 20. Bxg4 {[%emt 0:01:33]} c4 {[%emt 0:02:45]} 21. Bf4 {[%emt 0:08:37]} Be5 {[%emt 0:01:41]} 22. Bxe5 {[%emt 0:02:33]} Qxe5 {[%emt 0:00:13]} 23. Qxa5 {[%emt 0:05:48]} Qd6 {[%emt 0:04:16]} 24. Qd2 {[%emt 0:03:15]} Bb7 {[%emt 0:03:19]} 25. Kh2 {[%emt 0:03:45]} Ra8 {[%emt 0:03:39]} 26. a3 {[%emt 0:06:29]} gxf5 {[%emt 0:03:09]} 27. Rxf5 {[%emt 0:01:12]} Kh8 {[%emt 0:00:40]} 28. Ref1 {[%emt 0:00:37]} Rg8 {[%emt 0:07:12]} 29. Rxf7 {[%emt 0:04:27]} h5 {[%emt 0:01:48]} 30. Bf5 {[%emt 0:04:02]} Rxg3 {[%emt 0:01:03]} 31. Rf4 {[%emt 0:01:11]} Rg7 {[%emt 0:04:57]} 32. Rxg7 {[%emt 0:00:12]} Kxg7 {[%emt 0:00:01]} 33. Kh1 {[%emt 0:00:31]} Rg8 {[%emt 0:00:56]} 34. Qg2+ {[%emt 0:00:47]} Kh8 {[%emt 0:00:02]} 35. Qf3 {[%emt 0:00:23]} Qh6 {[%emt 0:00:16]} 36. h4 {[%emt 0:00:52]} e5 {[%emt 0:00:48]} 37. Be6 {[%emt 0:00:35]} exf4 {[%emt 0:00:33]} 38. Bxg8 {[%emt 0:00:18]} Kxg8 {[%emt 0:00:01]} 39. Kh2 {[%emt 0:00:39]} Kg7 {[%emt 0:00:45]} 40. Qf2 {[%emt 0:00:25]} Qf6 {[%emt 0:00:21]} 41. Qg2+ {[%emt 0:00:40]} Qg6 {[%emt 0:00:18]} 42. Qf2 {[%emt 0:00:10]} Qf6 {[%emt 0:00:09]} 43. Qg2+ {[%emt 0:00:12]} Kf7 {[%emt 0:00:05]} 44. Qf2 {[%emt 0:00:15]} f3 {[%emt 0:00:43]} 45. Kg1 {[%emt 0:00:56]} Qf4 {[%emt 0:00:59]} 46. Kf1 {[%emt 0:00:47]} Bc8 {[%emt 0:00:17]} 47. Kg1 {[%emt 0:00:30]} Qe3 {[%emt 0:00:24]} 0-1